lending/lending_fUSD_20250122
["ID","MTS","AMOUNT","RATE_DAILY","PERIOD"]
[349986754,1737550243789,-500.0,0.00021075,2]
[349986755,1737550243800,-500.0,0.00021075,2]
[349986756,1737550243811,-500.0,0.00021075,2]
[349986757,1737550243822,-500.0,0.00021075,2]
[349986758,1737550243832,-500.0,0.00021075,2]
[349986759,1737550243843,-505.77,0.00021075,2]
[349986760,1737550243854,-500.0,0.00021075,2]
[349986761,1737550243865,-505.09,0.00021075,2]
[349986762,1737550243876,-500.0,0.00021075,2]
[349986763,1737550243887,-500.0,0.00021075,2]
[349986764,1737550243897,-531.66,0.00021075,2]
[349986765,1737550243908,-500.0,0.00021075,2]
[349986766,1737550243918,-549.84,0.00021075,2]
[349986767,1737550243929,-500.0,0.00021075,2]
[349986768,1737550243940,-500.0,0.00021075,2]
[349986769,1737550243951,-500.0,0.00021075,2]
[349986770,1737550243962,-500.0,0.00021075,2]
[349986771,1737550243972,-500.0,0.00021075,2]
[349986772,1737550243984,-504.92,0.00021075,2]
[349986773,1737550243998,-500.0,0.00021075,2]
[349986774,1737550244009,-581.23,0.00021075,2]
[349986775,1737550244020,-500.0,0.00021075,2]
[349986776,1737550244032,-597.38,0.00021075,2]
[349986777,1737550244044,-500.0,0.00021075,2]
[349986778,1737550244055,-500.0,0.00021075,2]
[349986779,1737550244067,-500.0,0.00021075,2]
[349986780,1737550244079,-639.87,0.00021075,2]
[349986781,1737550244088,-500.0,0.00021075,2]
[349986783,1737550244098,-618.6,0.00021075,2]
[349986785,1737550244107,-503.43,0.00021075,2]
[349986787,1737550244116,-500.0,0.00021075,2]
[349986789,1737550244126,-764.42572749,0.0002108,2]
[349986791,1737550244135,-410.70852985,0.00021122,2]
[349986793,1737550244145,-500.0,0.00021178,2]
[349986794,1737550244154,-150.0,0.00021178,2]
[349986795,1737550244164,-150.0,0.00021178,2]
[349986796,1737550244173,-300.0,0.00021178,2]
[349986799,1737550244183,-1964.08,0.00021178,2]
[349986800,1737550244192,-150.94,0.00021178,2]
[349986803,1737550244202,-875.34,0.00021178,2]
[349986804,1737550244211,-298.05,0.00021178,2]
[349986805,1737550244220,-323.59,0.00021178,2]
[349986806,1737550244230,-764.42572749,0.00021244,2]
[349986807,1737550244240,-155.41877841,0.00021315,2]
[349986808,1737550244249,-410.70852985,0.00021317,2]
[349986809,1737550244259,-500.0,0.00021346,2]
[349986810,1737550244268,-1324.14,0.00021346,2]
[349986811,1737550244277,-183.43877253,0.00021346,2]
[349986812,1737550244287,-838.02,0.00021346,2]
[349986813,1737550244296,-1440.94,0.00021346,2]
[349986814,1737550244306,-841.92,0.00021346,2]
[349986815,1737550244315,-500.0,0.00021346,2]
[349986816,1737550244324,-632.359787,0.00021346,2]
[349986817,1737550244334,-500.0,0.00021346,2]
[349986818,1737550244344,-207.1329324,0.00021346,2]
[349986819,1737550244365,-292.8670676,0.00021346,2]
[349986820,1737550244374,-761.9867324,0.00021346,2]
[349986821,1737550244385,-40.3232676,0.00021346,2]
[349986822,1737550244395,-633.29,0.00021346,2]
[349986823,1737550244405,-372.026801,0.00021346,2]
[349986824,1737550244414,-829.67,0.00021346,2]
[349986825,1737550244423,-599.17,0.00021346,2]
[349986826,1737550244432,-500.0,0.00021346,2]
[349986827,1737550244441,-1047.43,0.00021346,2]
[349986828,1737550244451,-634.72,0.00021346,2]
[349986829,1737550244460,-500.0,0.00021346,2]
[349986830,1737550244471,-110.8699314,0.00021346,2]
[349986831,1737550244768,-412.41134845,0.00021346,2]
[349986832,1737550245194,-201.46024875,0.000199,2]
[349986833,1737550245203,-69.5815269,0.000201,2]
[349986834,1737550245214,-131.87872176,0.000201,2]
[349986835,1737550245223,-500.0,0.0002025,2]
[349986836,1737550245232,-500.0,0.00020251,2]
[349986837,1737550245242,-201.46024866,0.000203,2]
[349986838,1737550245251,-201.46024866,0.000205,2]
[349986839,1737550245260,-201.46024866,0.000207,2]
[349986840,1737550245269,-201.46024866,0.000209,2]
[349986841,1737550245278,-201.46024866,0.000211,2]
[349986842,1737550245287,-201.46024866,0.000213,2]
[349986843,1737550245296,-143.09872015,0.00021346,2]
[349986844,1737550245306,-677.62,0.00021346,2]
[349986845,1737550245315,-441.54106609,0.00021346,2]
[349986846,1737550245326,-109.04893391,0.00021346,2]
[349986847,1737550245336,-526.47126752,0.00021346,2]
[349986848,1737550245347,-1407.35873248,0.00021346,2]
[349986849,1737550245357,-98.65718576,0.00021346,2]
[349986850,1737550245368,-401.34281424,0.00021346,2]
[349986851,1737550245377,-408.65718576,0.00021346,2]
[349986852,1737550245388,-91.34281424,0.00021346,2]
[349986853,1737550245399,-500.0,0.00021346,2]
[349986854,1737550245408,-1403.4,0.00021346,2]
[349986855,1737550245417,-123.73940102,0.00021346,2]
[349986856,1737550245427,-1176.00059898,0.00021346,2]
[349986857,1737550245436,-727.72,0.00021346,2]
[349986858,1737550245445,-734.58,0.00021346,2]
[349986859,1737550245454,-887.04,0.00021346,2]
[349986860,1737550245464,-1064.43,0.00021346,2]
[349986861,1737550245476,-1288.75,0.00021346,2]
[349986862,1737550245486,-1690.68,0.00021346,2]
[349986863,1737550245495,-500.0,0.00021346,2]
[349986864,1737550245505,-164.121137,0.00021346,2]
[349986865,1737550245514,-827.51,0.00021346,2]
[349986866,1737550245524,-2187.48,0.00021346,2]
[349986867,1737550245534,-605.04,0.00021346,2]
[349986868,1737550245544,-500.0,0.00021346,2]
[349986869,1737550245555,-512.31,0.00021346,2]
[349986870,1737550245565,-1142.43,0.00021346,2]
[349986871,1737550245574,-870.91,0.00021346,2]
[349986872,1737550245583,-741.69,0.00021346,2]
[349986873,1737550245592,-786.79,0.00021346,2]
[349986874,1737550245601,-1258.42,0.00021346,2]
[349986875,1737550245611,-671.13,0.00021346,2]
[349986876,1737550245621,-2311.75,0.00021346,2]
[349986877,1737550245632,-1995.73,0.00021346,2]
[349986878,1737550245641,-724.13,0.00021346,2]
[349986879,1737550245651,-500.0,0.00021346,2]
[349986880,1737550245661,-534.86,0.00021346,2]
[349986881,1737550245670,-500.0,0.00021346,2]
[349986882,1737550245679,-500.0,0.00021346,2]
[349986883,1737550245688,-500.0,0.00021346,2]
[349986884,1737550245697,-899.7,0.00021346,2]
[349986885,1737550245707,-2173.1,0.00021346,2]
[349986886,1737550245716,-500.0,0.00021347,2]
[349986887,1737550245725,-500.0,0.00021347,2]
[349986888,1737550245735,-500.0,0.00021347,2]
[349986889,1737550245746,-500.0,0.00021347,2]
[349986890,1737550245756,-500.0,0.00021347,2]
[349986891,1737550245766,-500.0,0.00021347,2]
[349986892,1737550245775,-500.0,0.00021347,2]
[349986893,1737550245783,-366.1154065,0.00021347,2]
[349986894,1737550245792,-549.01,0.00021347,2]
[349986895,1737550245801,-500.0,0.00021347,2]
[349986896,1737550245811,-500.0,0.00021347,2]
[349986897,1737550245820,-500.0,0.00021347,2]
[349986898,1737550245829,-500.0,0.00021347,2]
[349986899,1737550245838,-566.71,0.00021347,2]
[349986900,1737550245847,-635.02,0.00021347,2]
[349986901,1737550245857,-677.94,0.00021347,2]
[349986902,1737550245866,-500.0,0.00021347,2]
[349986903,1737550245875,-500.0,0.00021347,2]
[349986904,1737550245884,-623.48,0.00021347,2]
[349986905,1737550245895,-514.25,0.00021347,2]
[349986906,1737550245905,-516.95,0.00021347,2]
[349986907,1737550245914,-500.0,0.00021347,2]
[349986908,1737550245923,-500.0,0.00021347,2]
[349986909,1737550245933,-500.0,0.00021347,2]
[349986910,1737550245942,-500.0,0.00021347,2]
[349986911,1737550245951,-500.0,0.00021347,2]
[349986912,1737550245960,-500.0,0.00021347,2]
[349986913,1737550245970,-500.0,0.00021347,2]
[349986914,1737550245979,-1097.46,0.00021347,2]
[349986915,1737550245988,-500.0,0.00021347,2]
[349986916,1737550245997,-500.0,0.00021347,2]
[349986917,1737550246006,-500.0,0.00021347,2]
[349986918,1737550246015,-500.0,0.00021347,2]
[349986919,1737550246024,-869.83,0.00021347,2]
[349986920,1737550246034,-500.0,0.00021347,2]
[349986921,1737550246043,-1231.12,0.00021347,2]
[349986922,1737550246052,-776.36,0.00021347,2]
[349986923,1737550246062,-500.0,0.00021347,2]
[349986925,1737550246071,-500.0,0.00021347,2]
[349986927,1737550246080,-1085.28,0.00021347,2]
[349986929,1737550246090,-923.42,0.00021347,2]
[349986931,1737550246099,-590.75285752,0.00021347,2]
[349986933,1737550246114,-784.12714248,0.00021347,2]
[349986936,1737550246123,-500.0,0.00021347,2]
[349986939,1737550246133,-1627.84,0.00021347,2]
[349986942,1737550246142,-821.35,0.00021347,2]
[349986944,1737550246151,-500.0,0.00021347,2]
[349986947,1737550246160,-3049.67,0.00021347,2]
[349986949,1737550246170,-1411.34,0.00021347,2]
[349986952,1737550246179,-500.0,0.00021347,2]
[349986955,1737550246188,-737.81,0.00021347,2]
[349986957,1737550246197,-500.0,0.00021347,2]
[349986959,1737550246206,-774.64,0.00021347,2]
[349986961,1737550246215,-500.0,0.00021347,2]
[349986962,1737550246224,-500.0,0.00021347,2]
[349986964,1737550246233,-500.0,0.00021347,2]
[349986966,1737550246242,-500.0,0.00021347,2]
[349986967,1737550246251,-1196.56,0.00021347,2]
[349986969,1737550246260,-1160.71,0.00021347,2]
[349986970,1737550246270,-500.0,0.00021347,2]
[349986972,1737550246279,-697.52,0.00021347,2]
[349986974,1737550246289,-500.0,0.00021347,2]
[349986975,1737550246298,-500.0,0.00021347,2]
[349986977,1737550246307,-237.27938158,0.00021347,2]
[349986979,1737550246317,-1050.82,0.00021347,2]
[349986981,1737550246326,-500.0,0.00021347,2]
[349986982,1737550246336,-500.0,0.00021347,2]
[349986984,1737550246345,-500.0,0.00021347,2]
[349986986,1737550246354,-500.0,0.00021347,2]
[349986988,1737550246363,-500.0,0.00021348,2]
[349986990,1737550246373,-731.17,0.00021348,2]
[349986991,1737550246382,-958.17,0.00021348,2]
[349986993,1737550246391,-500.0,0.00021348,2]
[349986995,1737550246400,-583.80554797,0.00021348,2]
[349986999,1737550246452,-578.89,0.00020251,2]
[349987000,1737550246463,-464.02445203,0.00021348,2]
[349987001,1737550246475,-2356.27,0.00021348,2]
[349987002,1737550246484,-1945.81554797,0.00021348,2]
[349987003,1737550246495,-2263.90390221,0.00021348,2]
[349987004,1737550246507,-646.79054982,0.00021348,2]
[349987005,1737550246516,-535.04,0.00021348,2]
[349987006,1737550246525,-624.86,0.00021348,2]
[349987007,1737550246534,-1355.30945018,0.00021348,2]
[349987008,1737550246545,-115.66054982,0.00021348,2]
[349987009,1737550246554,-455.44365018,0.00021348,2]
[349987010,1737550246566,-44.55634982,0.00021348,2]
[349987011,1737550246575,-593.39263768,0.00021348,2]
[349987012,1737550246587,-180.21736232,0.00021348,2]
[349987013,1737550246596,-904.11,0.00021348,2]
[349987014,1737550246606,-1010.51,0.00021348,2]
[349987015,1737550246616,-434.80860792,0.00021348,2]
[349987016,1737550246628,-65.19139208,0.00021348,2]
[349987017,1737550246638,-262.32960791,0.00021348,2]
[349987018,1737550246650,-737.67039209,0.00021348,2]
[349987019,1737550246660,-561.35,0.00021348,2]
[349987020,1737550246670,-816.17960791,0.00021348,2]
[349987021,1737550246682,-403.26653249,0.00021348,2]
[349987022,1737550246692,-166.5638596,0.00021348,2]
[349987023,1737550246701,-1254.1,0.00021348,2]
[349987024,1737550246710,-500.0,0.00021349,2]
[349987025,1737550246720,-500.0,0.00021349,2]
[349987026,1737550246728,-500.0,0.00021349,2]
[349987027,1737550246738,-500.0,0.00021349,2]
[349987028,1737550246747,-500.0,0.00021349,2]
[349987029,1737550246756,-500.0,0.00021349,2]
[349987030,1737550246765,-500.0,0.00021349,2]
[349987031,1737550246774,-500.0,0.00021349,2]
[349987032,1737550246783,-409.21018071,0.00021349,2]
[349987033,1737550246795,-90.78981929,0.00021349,2]
[349987034,1737550246805,-500.0,0.00021349,2]
[349987035,1737550246815,-500.0,0.00021349,2]
[349987036,1737550246824,-336.08924028,0.00021349,2]
[349987037,1737550246834,-500.0,0.00021349,2]
[349987038,1737550246844,-500.0,0.00021349,2]
[349987039,1737550246854,-500.0,0.00021349,2]
[349987040,1737550246864,-505.77,0.00021349,2]
[349987041,1737550246875,-500.0,0.00021349,2]
[349987042,1737550246884,-505.09,0.00021349,2]
[349987043,1737550246892,-500.0,0.00021349,2]
[349987044,1737550246902,-500.0,0.00021349,2]
[349987046,1737550246911,-531.66,0.00021349,2]
[349987047,1737550246920,-500.0,0.00021349,2]
[349987048,1737550246928,-549.84,0.00021349,2]
[349987049,1737550246941,-500.0,0.00021349,2]
[349987050,1737550246952,-500.0,0.00021349,2]
[349987051,1737550246962,-500.0,0.00021349,2]
[349987052,1737550246971,-500.0,0.00021349,2]
[349987053,1737550246981,-500.0,0.00021349,2]
[349987054,1737550246990,-504.92,0.00021349,2]
[349987055,1737550246999,-500.0,0.00021349,2]
[349987056,1737550247008,-581.23,0.00021349,2]
[349987057,1737550247017,-218.07672856,0.00021349,2]
[349987058,1737550247027,-597.38,0.00021349,2]
[349987059,1737550247036,-500.0,0.00021349,2]
[349987060,1737550247045,-500.0,0.00021349,2]
[349987061,1737550247054,-500.0,0.00021349,2]
[349987062,1737550247064,-639.87,0.00021349,2]
[349987063,1737550247073,-500.0,0.00021349,2]
[349987064,1737550247082,-618.6,0.00021349,2]
[349987065,1737550247091,-503.43,0.00021349,2]
[349987066,1737550247100,-500.0,0.00021349,2]
[349987067,1737550247110,-271.0,0.00021377,2]
[349987068,1737550247119,-1818.01040799,0.00021382,2]
[349987069,1737550247128,-764.42572749,0.00021408,2]
[349987070,1737550247137,-307.23134397,0.00021409,2]
[349987071,1737550247147,-505.41,0.00021411,7]
[349987072,1737550247156,-505.41,0.00021411,7]
[349987073,1737550247165,-505.41,0.00021411,7]
[349987074,1737550247174,-505.41,0.00021411,7]
[349987075,1737550247184,-1269.0,0.00021432,2]
[349987076,1737550247193,-571.19,0.00021432,2]
[349987077,1737550247203,-231.777,0.00021432,2]
[349987078,1737550247212,-634.0,0.00021432,2]
[349987079,1737550247222,-1864.0,0.00021432,2]
[349987080,1737550247233,-2947.0,0.00021432,2]
[349987081,1737550247242,-859.0,0.00021432,2]
[349987082,1737550247251,-1261.0,0.00021432,2]
[349987083,1737550247261,-908.0,0.00021432,2]
[349987084,1737550247270,-537.0,0.00021432,2]
[349987085,1737550247279,-3983.0,0.00021432,2]
[349987086,1737550247288,-150.0,0.00021432,2]
[349987087,1737550247298,-2742.695,0.00021432,2]
[349987088,1737550247307,-150.375,0.00021432,2]
[349987089,1737550247316,-150.0,0.00021432,2]
[349987090,1737550247325,-201.46024866,0.000215,2]
[349987091,1737550247334,-410.70852985,0.00021511,2]
[349987092,1737550247344,-356.96237984,0.00021521,2]
[349987093,1737550247353,-167.08419073,0.00021521,2]
[349987094,1737550247362,-186.38643451,0.00021521,2]
[349987095,1737550247372,-165.9456554,0.0002156,2]
[349987096,1737550247381,-764.42572749,0.00021572,2]
[349987097,1737550247391,-186.38643449,0.00021584,2]
[349987098,1737550247400,-271.0,0.00021598,2]
[349987099,1737550247409,-356.96237982,0.00021616,2]
[349987100,1737550247418,-500.0,0.0002162,2]
[349987101,1737550247428,-1324.14,0.0002162,2]
[349987102,1737550247437,-838.02,0.0002162,2]
[349987103,1737550247448,-1440.94,0.0002162,2]
[349987104,1737550247458,-841.92,0.0002162,2]
[349987105,1737550247470,-500.0,0.0002162,2]
[349987106,1737550247480,-632.359787,0.0002162,2]
[349987107,1737550247489,-199.62167118,0.0002162,2]
[349987108,1737550247502,-300.37832882,0.0002162,2]
[349987109,1737550247512,-500.0,0.0002162,2]
[349987110,1737550247522,-227.0591738,0.0002162,2]
[349987111,1737550247533,-575.2508262,0.0002162,2]
[349987112,1737550247542,-633.29,0.0002162,2]
[349987113,1737550247554,-155.14752309,0.0002162,2]
[349987114,1737550247566,-216.87927791,0.0002162,2]
[349987115,1737550247576,-829.67,0.0002162,2]
[349987116,1737550247585,-170.35513869,0.0002162,2]
[349987117,1737550247596,-265.40138047,0.0002162,2]
[349987118,1737550247607,-163.41348084,0.0002162,2]
[349987119,1737550247616,-500.0,0.0002162,2]
[349987120,1737550247626,-1047.43,0.0002162,2]
[349987121,1737550247637,-571.90757841,0.0002162,2]
[349987122,1737550247648,-62.81242159,0.0002162,2]
[349987123,1737550247658,-500.0,0.0002162,2]
[349987124,1737550247668,-666.38,0.0002162,2]
[349987125,1737550247678,-677.62,0.0002162,2]
[349987126,1737550247688,-220.58757841,0.0002162,2]
[349987127,1737550248002,-330.00242159,0.0002162,2]
[349987128,1737550248012,-1933.83,0.0002162,2]
[349987129,1737550248022,-500.0,0.0002162,2]
[349987130,1737550248032,-500.0,0.0002162,2]
[349987131,1737550248041,-500.0,0.0002162,2]
[349987132,1737550248051,-1403.4,0.0002162,2]
[349987133,1737550248060,-1299.74,0.0002162,2]
[349987134,1737550248070,-727.72,0.0002162,2]
[349987135,1737550248079,-734.58,0.0002162,2]
[349987136,1737550248089,-887.04,0.0002162,2]
[349987137,1737550248098,-1064.43,0.0002162,2]
[349987138,1737550248108,-1288.75,0.0002162,2]
[349987139,1737550248118,-1690.68,0.0002162,2]
[349987140,1737550248127,-500.0,0.0002162,2]
[349987141,1737550248137,-827.51,0.0002162,2]
[349987142,1737550248147,-2187.48,0.0002162,2]
[349987143,1737550248156,-605.04,0.0002162,2]
[349987144,1737550248166,-500.0,0.0002162,2]
[349987145,1737550248176,-512.31,0.0002162,2]
[349987146,1737550248185,-1142.43,0.0002162,2]
[349987147,1737550248195,-870.91,0.0002162,2]
[349987148,1737550248204,-741.69,0.0002162,2]
[349987149,1737550248213,-786.79,0.0002162,2]
[349987150,1737550248223,-1258.42,0.0002162,2]
[349987151,1737550248232,-671.13,0.0002162,2]
[349987152,1737550248243,-2311.75,0.0002162,2]
[349987153,1737550248252,-1995.73,0.0002162,2]
[349987154,1737550248262,-724.13,0.0002162,2]
[349987155,1737550248271,-500.0,0.0002162,2]
[349987156,1737550248281,-534.86,0.0002162,2]
[349987157,1737550248290,-500.0,0.0002162,2]
[349987158,1737550248300,-500.0,0.0002162,2]
[349987159,1737550248309,-500.0,0.0002162,2]
[349987160,1737550248318,-899.7,0.0002162,2]
[349987161,1737550248327,-2173.1,0.0002162,2]
[349987162,1737550248337,-500.0,0.00021621,2]
[349987163,1737550248346,-500.0,0.00021621,2]
[349987164,1737550248356,-500.0,0.00021621,2]
[349987165,1737550248366,-410.92164449,0.00021621,2]
[349987166,1737550248375,-500.0,0.00021621,2]
[349987167,1737550248384,-500.0,0.00021621,2]
[349987168,1737550248395,-549.01,0.00021621,2]
[349987169,1737550248405,-500.0,0.00021621,2]
[349987170,1737550248414,-500.0,0.00021621,2]
[349987171,1737550248424,-500.0,0.00021621,2]
[349987172,1737550248433,-468.87359248,0.00021621,2]
[349987173,1737550248442,-566.71,0.00021621,2]
[349987174,1737550248452,-635.02,0.00021621,2]
[349987175,1737550248462,-677.94,0.00021621,2]
[349987176,1737550248474,-500.0,0.00021621,2]
[349987177,1737550248484,-500.0,0.00021621,2]
[349987178,1737550248493,-623.48,0.00021621,2]
[349987179,1737550248504,-514.25,0.00021621,2]
[349987180,1737550248515,-516.95,0.00021621,2]
[349987181,1737550248524,-500.0,0.00021621,2]
[349987182,1737550248534,-500.0,0.00021621,2]
[349987183,1737550248546,-500.0,0.00021621,2]
[349987184,1737550248556,-500.0,0.00021621,2]
[349987185,1737550248567,-500.0,0.00021621,2]
[349987186,1737550248576,-500.0,0.00021621,2]
[349987187,1737550248586,-500.0,0.00021621,2]
[349987188,1737550248595,-466.85979559,0.00021621,2]
[349987189,1737550248605,-500.0,0.00021621,2]
[349987190,1737550248615,-500.0,0.00021621,2]
[349987191,1737550248624,-500.0,0.00021621,2]
[349987192,1737550248634,-869.83,0.00021621,2]
[349987193,1737550248647,-500.0,0.00021621,2]
[349987194,1737550248657,-1231.12,0.00021621,2]
[349987195,1737550248668,-776.36,0.00021621,2]
[349987196,1737550248678,-500.0,0.00021621,2]
[349987197,1737550248689,-500.0,0.00021621,2]
[349987198,1737550248699,-1085.28,0.00021621,2]
[349987199,1737550248709,-923.42,0.00021621,2]
[349987200,1737550248719,-1374.88,0.00021621,2]
[349987201,1737550248730,-500.0,0.00021621,2]
[349987202,1737550248741,-1627.84,0.00021621,2]
[349987203,1737550248751,-821.35,0.00021621,2]
[349987204,1737550248761,-500.0,0.00021621,2]
[349987205,1737550248771,-3049.67,0.00021621,2]
[349987206,1737550248781,-1411.34,0.00021621,2]
[349987207,1737550248791,-500.0,0.00021621,2]
[349987208,1737550248801,-737.81,0.00021621,2]
[349987209,1737550248811,-500.0,0.00021621,2]
[349987210,1737550248820,-774.64,0.00021621,2]
[349987211,1737550248830,-500.0,0.00021621,2]
[349987212,1737550248839,-500.0,0.00021621,2]
[349987213,1737550248850,-500.0,0.00021621,2]
[349987214,1737550248859,-500.0,0.00021621,2]
[349987215,1737550248869,-1196.56,0.00021621,2]
[349987216,1737550248878,-1160.71,0.00021621,2]
[349987217,1737550248888,-245.14118966,0.00021621,2]
[349987218,1737550248900,-697.52,0.00021621,2]
[349987219,1737550248909,-500.0,0.00021621,2]
[349987220,1737550248919,-500.0,0.00021621,2]
[349987221,1737550248928,-1050.82,0.00021621,2]
[349987222,1737550248937,-500.0,0.00021621,2]
[349987223,1737550248946,-500.0,0.00021621,2]
[349987224,1737550248957,-500.0,0.00021621,2]
[349987225,1737550248966,-500.0,0.00021621,2]
[349987226,1737550248976,-852.0,0.00021622,2]
[349987227,1737550248985,-500.0,0.00021622,2]
[349987228,1737550248995,-731.17,0.00021622,2]
[349987229,1737550249005,-958.17,0.00021622,2]
[349987230,1737550249014,-500.0,0.00021622,2]
[349987231,1737550249024,-1047.83,0.00021622,2]
[349987232,1737550249033,-2356.27,0.00021622,2]
[349987233,1737550249044,-4856.51,0.00021622,2]
[349987234,1737550249053,-535.04,0.00021622,2]
[349987235,1737550249063,-624.86,0.00021622,2]
[349987236,1737550249073,-1470.97,0.00021622,2]
[349987237,1737550249083,-213.55049092,0.00021622,2]
[349987238,1737550249093,-773.61,0.00021622,2]
[349987239,1737550249102,-904.11,0.00021622,2]
[349987240,1737550249111,-1010.51,0.00021622,2]
[349987241,1737550249122,-500.0,0.00021622,2]
[349987242,1737550249132,-1000.0,0.00021622,2]
[349987243,1737550249142,-561.35,0.00021622,2]
[349987244,1737550249153,-1386.01,0.00021622,2]
[349987245,1737550249162,-1254.1,0.00021622,2]
[349987246,1737550249172,-500.0,0.00021623,2]
[349987247,1737550249181,-500.0,0.00021623,2]
[349987248,1737550249191,-500.0,0.00021623,2]
[349987249,1737550249200,-500.0,0.00021623,2]
[349987250,1737550249210,-500.0,0.00021623,2]
[349987251,1737550249219,-500.0,0.00021623,2]
[349987252,1737550249229,-500.0,0.00021623,2]
[349987253,1737550249239,-500.0,0.00021623,2]
[349987254,1737550249249,-500.0,0.00021623,2]
[349987255,1737550249259,-262.60329588,0.00021623,2]
[349987256,1737550249269,-500.0,0.00021623,2]
[349987257,1737550249278,-500.0,0.00021623,2]
[349987258,1737550249287,-500.0,0.00021623,2]
[349987259,1737550249297,-500.0,0.00021623,2]
[349987260,1737550249307,-505.77,0.00021623,2]
[349987261,1737550249316,-500.0,0.00021623,2]
[349987262,1737550249326,-505.09,0.00021623,2]
[349987263,1737550249336,-500.0,0.00021623,2]
[349987264,1737550249345,-500.0,0.00021623,2]
[349987265,1737550249355,-531.66,0.00021623,2]
[349987266,1737550249365,-500.0,0.00021623,2]
[349987267,1737550249375,-549.84,0.00021623,2]
[349987268,1737550249384,-441.7711401,0.00021623,2]
[349987269,1737550249394,-500.0,0.00021623,2]
[349987270,1737550249403,-500.0,0.00021623,2]
[349987271,1737550249413,-500.0,0.00021623,2]
[349987272,1737550249422,-500.0,0.00021623,2]
[349987273,1737550249431,-504.92,0.00021623,2]
[349987274,1737550249440,-500.0,0.00021623,2]
[349987275,1737550249449,-581.23,0.00021623,2]
[349987276,1737550249459,-597.38,0.00021623,2]
[349987277,1737550249470,-500.0,0.00021623,2]
[349987278,1737550249481,-500.0,0.00021623,2]
[349987279,1737550249490,-500.0,0.00021623,2]
[349987280,1737550249499,-639.87,0.00021623,2]
[349987281,1737550249508,-618.6,0.00021623,2]
[349987282,1737550249518,-503.43,0.00021623,2]
[349987283,1737550249527,-500.0,0.00021623,2]
[349987284,1737550249537,-186.38643449,0.00021647,2]
[349987285,1737550249547,-505.41,0.00021685,7]
[349987286,1737550249556,-505.41,0.00021685,7]
[349987287,1737550249567,-201.46024866,0.000217,3]
[349987288,1737550249575,-410.70852985,0.00021706,2]
[349987289,1737550249585,-356.96237982,0.00021711,2]
[349987290,1737550249596,-186.38643449,0.00021711,2]
[349987291,1737550249607,-583.56,0.00021723,2]
[349987292,1737550249617,-764.42572749,0.00021736,2]
[349987293,1737550249626,-186.38643449,0.00021774,2]
[349987294,1737550249635,-3000.0,0.0002178,2]
[349987295,1737550249645,-24774.750002,0.000218,2]
[349987296,1737550249655,-24774.750002,0.000218,2]
[349987297,1737550249664,-1734.02,0.000218,2]
[349987298,1737550249674,-356.96237982,0.00021805,2]
[349987299,1737550249683,-271.0,0.00021818,2]
[349987300,1737550249692,-500.0,0.00021824,2]
[349987301,1737550249701,-186.38643449,0.00021837,2]
[349987302,1737550249711,-270.3626764,0.00021885,2]
[349987303,1737550249721,-500.0,0.00021894,2]